Cogmind - Beta 13 @@@ ROGUE MODE // 2024.05.03 @ 20:58:18 Player: DONGSPRAYER9000 Result: Destroyed by G-47 Trooper with Particle Gun Performance ------------- Evolutions (2) 1000 Regions Visited (4) 800 Robots Destroyed (19) 95 Value Destroyed (239) 239 Prototype IDs (3) 60 Alien Tech Used (0) 0 Bonus (0) 0 TOTAL SCORE: 2194 Bonus ------- None Cogmind --------- Core Integrity 0/550 Matter 117/300 Energy 16/100 System Corruption 2% Temperature Critical (557) Movement Core (500) Ox9 Location -8/Materials Parts ------- > --- POWER (2) -------- (None) > --- PROPULSION (3) --- (None) > --- UTILITY (2) ------ Large Storage Unit Targeting Computer > --- WEAPON (4) ------- Medium Laser Heavy Assault Rifle Light Cannon > --- INVENTORY (15) --- Ion Engine ECM Suite Peak State ------------ > --- POWER ------------ Deuterium Engine Deuterium Engine > --- PROPULSION ------- Wheel Compact Wheel > --- UTILITY ---------- Large Storage Unit Targeting Computer > --- WEAPON ----------- Shock Rifle Improved Medium Laser Improved Medium Laser Grenade Launcher > --- INVENTORY -------- Ion Engine Heavy Ion Engine Deuterium Engine Deuterium Engine ECM Suite Medium Laser Improved Medium Laser Particle Cannon Heavy Assault Rifle Enhanced Autogun Light Cannon [Rating: 22] Favorites ----------- Power Light Ion Engine Engine Light Ion Engine Propulsion Compact Wheel Leg Aluminum Leg Wheel Compact Wheel Utility Targeting Computer Storage Large Storage Unit Processor Targeting Computer Weapon Medium Laser Energy Gun Medium Laser Energy Cannon Particle Cannon Ballistic Gun Heavy Assault Rifle Ballistic Cannon Light Cannon Launcher Grenade Launcher Build | -11 -10 -10 -9 -8 ------- Run | Yrd Mat Min Mat Mat Slots Evolved 4 | . . . 2 2 Power 1 | . . . . 1 Propulsion 1 | . . . . 1 Utility . | . . . . . Weapon 2 | . . . 2 . Parts Attached 26 | 5 4 . 4 13 Power 6 | 1 . . 1 4 Engine 6 | 1 . . 1 4 Core . | . . . . . Reactor . | . . . . . Propulsion 4 | 3 . . 1 . Treads . | . . . . . Leg 1 | 1 . . . . Wheel 3 | 2 . . 1 . Hover . | . . . . . Flight . | . . . . . Utility 3 | . 3 . . . Device . | . . . . . Storage 1 | . 1 . . . Processor 2 | . 2 . . . Hackware . | . . . . . Protection . | . . . . . Artifact . | . . . . . Weapon 13 | 1 1 . 2 9 Energy Gun 8 | 1 1 . 1 5 Energy Cannon 1 | . . . . 1 Ballistic Gun 1 | . . . . 1 Ballistic Cannon 1 | . . . . 1 Launcher 2 | . . . 1 1 Special Weapon . | . . . . . Impact Weapon . | . . . . . Slashing Weapon . | . . . . . Piercing Weapon . | . . . . . Special Melee Weapon . | . . . . . Unidentified Prototypes 3 | . . . . 3 Parts Lost 13 | . . . . 13 Power 4 | . . . . 4 Propulsion 2 | . . . . 2 Utility . | . . . . . Weapon 7 | . . . . 7 Highest Loss Streak 13 | . . . . 13 To Critical Strikes . | . . . . . Average Slot Usage (%) 92 | . 76 100 100 81 Engine 13 | . 14 14 11 16 Wheel 22 | . 28 28 22 15 Storage 9 | . 1 14 11 9 Processor 10 | . 8 14 11 9 Energy Gun 28 | . 22 28 33 20 Launcher 7 | . . . 11 10 Naked Turns . | . . . . . Heaviest Build 50 | 5 27 27 32 50 Greatest Support 32 | 32 32 32 32 26 Greatest Overweight (x) 2 | . . . 1 2 Average Overweight (x) . | . . . . 1 Largest Inventory Capacity 15 | 5 15 15 15 15 Average Capacity 12 | 5 5 15 15 15 Most Carried 15 | 5 6 7 15 14 Average Carried 8 | 3 4 6 11 9 Final Capacity 15 | 5 15 15 15 15 Final Carried 15 | 5 6 7 15 2 Class Distribution -------------------- 61% | Gunner 38% | Mutant Dominant Class ---------------- Mutant | -10/Materials Mutant | -10/Mines Gunner | -9/Materials Gunner | -8/Materials Resources | -11 -10 -10 -9 -8 ----------- Run | Yrd Mat Min Mat Mat Matter Collected 404 | 128 . 162 110 4 Remotely . | . . . . . Salvage Created 341 | . . 164 153 24 Parts 35 | . . 19 16 . Haulers Intercepted . | . . . . . Recyclers Shooed 4 | . . 3 . 1 Parts Field Recycled . | . . . . . Retrieved Matter . | . . . . . Parts Self-Destructed . | . . . . . Prevented . | . . . . . Kills | -11 -10 -10 -9 -8 ------- Run | Yrd Mat Min Mat Mat Combat Hostiles Destroyed 13 | . . 9 3 1 Guns 11 | . . 9 1 1 AOE 2 | . . . 2 . Classes Destroyed 6 | . . 2 3 1 Builder 2 | . . 1 1 . Recycler 1 | . . . 1 . Operator 1 | . . . 1 . Watcher 2 | . . . 2 . Swarmer 12 | . . 9 3 . Sentry 1 | . . . . 1 Best Kill Streak 4 | . . 4 3 1 Combat Bots Only 3 | . . 3 3 1 Max Kills in Single Turn 2 | . . 1 2 1 Gunslinging . | . . . . . Exploded 2 | . . . 2 . Melee . | . . . . . Uniques/NPCs Destroyed . | . . . . . Combat | -11 -10 -10 -9 -8 -------- Run | Yrd Mat Min Mat Mat Hostile Shots Fired 104 | . . 24 7 73 Missed 18 | . . 5 3 10 Damage Taken 1666 | . . 161 60 1445 Core 616 | . . 42 7 567 Absorbed by Shields . | . . . . . Core Remaining (%) 93 | 100 . 83 98 . Volleys Fired 35 | . . 16 8 11 Largest 4 | . . 2 4 4 Hottest 170 | . . 90 170 166 Shots Fired 93 | . . 32 31 30 Gun 71 | . . 32 24 15 Cannon 5 | . . . . 5 Launcher 17 | . . . 7 10 Special . | . . . . . Kinetic 2 | . . . . 2 Thermal 47 | . . 16 16 15 Explosive 17 | . . . 7 10 Electromagnetic 27 | . . 16 8 3 Robot Hit Streak 16 | . . 5 7 16 Robot Miss Streak 3 | . . 3 1 2 Penetration Max . | . . . . . Secondary Targets 2 | . . 2 . . Max Gunslinging Chain 1 | . . 1 . . Shots Hit Robots 53 | . . 18 15 20 Core Hits 28 | . . 11 8 9 Critical Kills . | . . . . . Critical Parts Destroyed . | . . . . . Critical Strikes . | . . . . . Melee Attacks . | . . . . . Impact . | . . . . . Slashing . | . . . . . Piercing . | . . . . . Sneak Attacks . | . . . . . Combat Hostiles . | . . . . . Follow-up Attacks . | . . . . . Damage Inflicted 1204 | . . 255 402 547 Guns 619 | . . 255 173 191 Cannons 60 | . . . . 60 Explosions 525 | . . . 229 296 Melee . | . . . . . Ramming . | . . . . . Kinetic 33 | . . . . 33 Thermal 412 | . . 124 88 200 Explosive 498 | . . . 229 269 Electromagnetic 261 | . . 131 85 45 Impact . | . . . . . Slashing . | . . . . . Piercing . | . . . . . Highest Corruption 2 | . . . . 2 Average Corruption 2 | . . . . 2 Corruption Purged . | . . . . . Corruption Blocked . | . . . . . Overload Shots . | . . . . . Overflow Damage 11 | . . . 11 . Projectiles . | . . . . . Explosions 11 | . . . 11 . Melee . | . . . . . Knockbacks . | . . . . . Impact . | . . . . . Kinetic . | . . . . . Secondary . | . . . . . Self-Inflicted Damage 102 | . . . 32 70 Shots 5 | . . . 1 4 Rammed . | . . . . . Targets Rammed . | . . . . . Kicked . | . . . . . Crushed . | . . . . . Highest Temperature 590 | . . 150 228 590 Average Temperature 147 | . . 66 76 349 Received Heat Transfer 405 | . . . . 405 Effects 12 | . . . . 12 Shutdowns 2 | . . . . 2 Energy Bleed 1 | . . . . 1 Damage (minor) 1 | . . . . 1 Damage (major) 8 | . . . . 8 Siege Activations . | . . . . . Robots Corrupted . | . . . . . Combat Hostiles . | . . . . . Parts Fried . | . . . . . Impact Corruptions . | . . . . . Robots Melted . | . . . . . Combat Hostiles . | . . . . . Parts Melted 1 | . . . . 1 Heat Transferred 1049 | . . 370 259 420 Parts Sabotaged . | . . . . . Parts Stolen . | . . . . . Parts Stripped . | . . . . . Power Chain Reactions 1 | . . . . 1 Alert | -11 -10 -10 -9 -8 ------- Run | Yrd Mat Min Mat Mat Peak Influence 294 | . 15 220 294 202 Initial 124 | . . 5 85 124 Average 141 | . 12 124 217 130 Maximum Alert Level 1 | . . 1 1 1 Low Security (%) 72 | 100 100 88 40 98 Level 1 27 | . . 11 59 1 Level 2 . | . . . . . Level 3 . | . . . . . Level 4 . | . . . . . Level 5 . | . . . . . High Security . | . . . . . Max Security . | . . . . . Squads Dispatched 4 | . . . . 4 Investigation 1 | . . . . 1 Extermination . | . . . . . Reinforcement 3 | . . . . 3 Assault . | . . . . . Garrison . | . . . . . Intercept . | . . . . . Searches Triggered . | . . . . . Construction Impeded . | . . . . . Haulers Reinforced . | . . . . . Active Scanning Responses . | . . . . . Cargo Convoy Interrupts . | . . . . . Stealth | -11 -10 -10 -9 -8 --------- Run | Yrd Mat Min Mat Mat Distress Signals 3 | . . 1 . 2 Communications Jammed . | . . . . . Distress Signals . | . . . . . Times Spotted 24 | . 1 9 6 8 Peak Tracking Total 7 | . 1 3 3 7 Tactical Retreats . | . . . . . Traps | -11 -10 -10 -9 -8 ------- Run | Yrd Mat Min Mat Mat Traps Triggered . | . . . . . Indirectly . | . . . . . Trap Hack Attempts . | . . . . . Triggered . | . . . . . Disarmed . | . . . . . Reprogrammed . | . . . . . Reused . | . . . . . Traps Extracted . | . . . . . Installed . | . . . . . Triggered . | . . . . . Machines | -11 -10 -10 -9 -8 ---------- Run | Yrd Mat Min Mat Mat Machines Disabled 1 | . . . 1 . Max in Single Turn 1 | . . . 1 . Machines Repaired . | . . . . . Machines Dismantled . | . . . . . Machines Sabotaged . | . . . . . Overloaded Fab Kills . | . . . . . Hacking | -11 -10 -10 -9 -8 --------- Run | Yrd Mat Min Mat Mat Machines Accessed 4 | . . . 2 2 Terminals 3 | . . . 2 1 Fabricators . | . . . . . Repair Stations . | . . . . . Recycling Units . | . . . . . Scanalyzers 1 | . . . . 1 Garrison Access . | . . . . . Total Hacks 17 | . . . 7 10 Successful 9 | . . . 3 6 Failed 8 | . . . 4 4 Catastrophic 3 | . . . 2 1 Database Lockouts . | . . . . . Manual 1 | . . . 1 . Terminals 9 | . . . 7 2 Fabricators . | . . . . . Repair Stations . | . . . . . Recycling Units . | . . . . . Scanalyzers 8 | . . . . 8 Garrison Access . | . . . . . Terminal Hacks 3 | . . . 3 . Record 1 | . . . 1 . Emergency Access Points 1 | . . . 1 . Zone Layout 1 | . . . 1 . Fabricator Hacks . | . . . . . Repair Station Hacks . | . . . . . Recycling Unit Hacks . | . . . . . Scanalyzer 6 | . . . . 6 Insert Component 3 | . . . . 3 Analyze 3 | . . . . 3 Garrison Access Hacks . | . . . . . Unauthorized Hacks . | . . . . . Terminals . | . . . . . Fabricators . | . . . . . Repair Stations . | . . . . . Recycling Units . | . . . . . Scanalyzers . | . . . . . Garrison Access . | . . . . . Data Cores Recovered 1 | . . . 1 . Used . | . . . . . Hacking Detections 4 | . . . 2 2 Full Trace Events 3 | . . . 2 1 Feedback Events . | . . . . . Feedback Blocked . | . . . . . Robot Schematics Acquired . | . . . . . Robots Built . | . . . . . Authchips . | . . . . . Time . | . . . . . Total Robot Build Rating . | . . . . . Part Schematics Acquired 2 | . . . . 2 Parts Built . | . . . . . Authchips . | . . . . . Time . | . . . . . Total Part Build Rating . | . . . . . Parts Repaired . | . . . . . Time . | . . . . . Parts Recycled . | . . . . . Recycled Matter . | . . . . . Retrieved Matter . | . . . . . Retrieved Components . | . . . . . Parts Scanalyzed 3 | . . . . 3 Part Schematics Acquired 2 | . . . . 2 Parts Damaged 1 | . . . . 1 Bothacking | -11 -10 -10 -9 -8 ------------ Run | Yrd Mat Min Mat Mat Used RIF Installer . | . . . . . Robots Hacked . | . . . . . Non-combat . | . . . . . Combat . | . . . . . Robot Hacks Applied . | . . . . . Relay Couplers Released . | . . . . . Fabnet Peak Effective % . | . . . . . Robots Rewired . | . . . . . Allies Hacked . | . . . . . Hacks Repelled . | . . . . . Allies | -11 -10 -10 -9 -8 -------- Run | Yrd Mat Min Mat Mat Total Allies . | . . . . . Largest Group . | . . . . . Highest-Rated Group . | . . . . . Highest-Rated Ally . | . . . . . Total Orders . | . . . . . Ally Attacks . | . . . . . Total Damage . | . . . . . Kills . | . . . . . Allies Corrupted . | . . . . . Allies Melted . | . . . . . Intel | -11 -10 -10 -9 -8 ------- Run | Yrd Mat Min Mat Mat Robot Analysis Total . | . . . . . Derelict Logs Recovered . | . . . . . Drone Launches . | . . . . . Drone Recoveries . | . . . . . Exploration | -11 -10 -10 -9 -8 ------------- Run | Yrd Mat Min Mat Mat Turns Passed 774 | 58 107 118 340 151 Spaces Moved 590 | 56 93 70 281 90 Core 25 | 25 . . . . Treads . | . . . . . Legs . | . . . . . Wheels 565 | 31 93 70 281 90 Hover . | . . . . . Flight . | . . . . . Fastest Speed 50 | 50 100 100 100 105 Average Speed 99 | 77 100 100 101 105 Slowest Speed 130 | 100 100 100 105 130 Overloaded Moves . | . . . . . Propulsion Burnouts . | . . . . . Robots Hopped . | . . . . . Cave-ins Triggered . | . . . . . Exploration Rate (%) 15 | 4 20 17 21 15 Regions Visited 4 Branch Regions 1 Pre-discovered Areas . | . . . . . Known Exits Taken 1 | . 1 . . . Unknown Exits Taken 3 | 1 . 1 1 . Scrap Searched 1 | . . 1 . . Spaces Dug . | . . . . . Terrain Destroyed 103 | . . . 56 47 Melee . | . . . . . Projectile . | . . . . . AOE 103 | . . . 56 47 Terrain Rammed . | . . . . . Walls Destroyed . | . . . . . Machines Disabled . | . . . . . Actions | -11 -10 -10 -9 -8 --------- Run | Yrd Mat Min Mat Mat Total 709 | 70 108 86 320 125 Wait 2 | . 2 . . . Move 586 | 55 92 69 280 90 Hop . | . . . . . Pick Up 39 | 9 7 1 19 3 Fast Attach . | . . . . . Attach 23 | 5 4 . 2 12 Detach 1 | 1 . . . . Swap 4 | . . . 2 2 Drop 19 | . 3 . 9 7 Fire 35 | . . 16 8 11 Melee . | . . . . . Ram . | . . . . . Kick . | . . . . . Crush . | . . . . . Escape Stasis . | . . . . . Rewire . | . . . . . Trap . | . . . . . Miscellaneous . | . . . . . Route ------- -11/Scrapyard -10/Materials -10/Mines -9/Materials -8/Materials History --------- Turn | Location | Event 10 | -11/Scrapyard | Discovered new exit (range 16) 59 | -11/Scrapyard | Entered Materials 141 | -10/Materials | Discovered new exit (range 4) 144 | -10/Materials | Identified exit to Mines 166 | -10/Materials | Entered Mines 178 | -10/Mines | Met a Derelict bent on vengeance 278 | -10/Mines | Discovered new exit (range 4) 284 | -10/Mines | Entered Materials 284 | -9/Materials | Evolved 2 slots: Weapon x2 575 | -9/Materials | Build established: Gunner 619 | -9/Materials | Discovered new exit (range 4) 624 | -9/Materials | Entered another Materials area 624 | -8/Materials | Evolved 2 slots: Power x1, Propulsion x1 764 | -8/Materials | Core integrity fell below 50% 771 | -8/Materials | Core integrity fell below 20% 775 | -8/Materials | Destroyed by G-47 Trooper with Particle Gun Last Messages --------------- Overheating: Deuterium Engine damaged (-10). Deuterium Engine destroyed. Knocked back. Particle Cannon destroyed. Overheating: Faulty Hvy. Ion Engine damaged (-54). Overheating: Imp. Medium Laser damaged (-9). Overheating: Targeting Computer damaged (-5). Overheating: Lrg. Storage Unit damaged (-177). Overheating: Targeting Computer damaged (-1). Overheating: Faulty Hvy. Ion Engine damaged (-13). Imp. Medium Laser destroyed. Faulty Hvy. Ion Engine destroyed. Overheating: Energy bleed (-13). Imp. Medium Laser destroyed. Overheating: Targeting Computer damaged (-1). W-25 Informer sends out distress signal. Penetrated by Slug. Overheating: Lgt. Cannon damaged (-29). Map ----- +----------------------------------------------------+ | | | | | | | | | | | | | | | | | ?????????????????????????????????????????????????? | | ?????????????????????????????????????????????????? | | ?????????????????????????????????????????????????? | | ?????????????????????????????????????????????????? | | ?????????????????????????????????????????????????? | | ?????????????????????????????????????????????????? | | ??????????????????????????????????????????#??????? | | ????????????????????????????????????????? ??????? | | ???????????????????????????????????????? ""??????? | | ?????????????????##?????????##+##?????? Y"??????? | | ????????????????## ########## ?????? ""#?????? | | ???###########??# """"" + #?###? +?????? | | #### [ #??# ""T"" # ## # #?????? | | # #??# % # # # #??????? | | # """"""" #??# !*Y # # # ??? | | # """"""" #??# !* % wgH ??? | | + """"""" #??# !* % g# ! ??? | | # """"""" #??# @ g# # # # #??????? | | # """"""" #??########;% # # #??????? | | # #???# ![ # #? [ #??????? | | ############### ![ ### #? ##??????? | | # # ![ + #?? ##???????? | | # !! "" # #### #?? #????????? | | + !! """ """# #??# #??? #????????? | | # ! """ S"# #??# +??? #????????? | | # """ # #??# # ??? #????????? | | # ! # *[ #??# # ?? #????????? | | #############+# #??# #? ??? #????????? | | #???????????# ####k#####??# #?##??####????????? | | # ! ####### ## ###### #?????????????????? | | # + T ???????????????? | | #?"T" ########## "" #??????????????? | | ???????????????# #??????????????? | | ???????????????# ####### #??????????????? | | ???????????????## ##???????? #??????????????? | | ????????????????# #?????????????????????????? | | T ????????????????# #?????????????????????????? | | ????????????????# #?????????????????????????? | | ? ????????????????# #?????????????????????????? | | ???????????????????# #?????????????????????????? | | ???????????????????? #?????????????????????????? | | ???????????????????? #?????????????????????????? | +----------------------------------------------------+ Best States ------------- Heat Dissipation 31 Energy Generation 23 Energy Capacity 450 Matter Stores 300 Matter Capacity 300 Sight Range 16 Terrain Scan Density 10 Evasion (%) 50 Targeting Accuracy 5 Item Schematics ----------------- ECM Suite | -8/Materials | Scanalyzed Deuterium Engine | -8/Materials | Scanalyzed Robot Schematics ------------------ None Fabricated ------------ Nothing Alien Tech Used ----------------- None Achievements -------------- None Challenges ------------ None Game ------ Seed WarpNeutronTerrabomb Manual? 0 Play Time 00:11:22 Cumulative 2.8 hours Start 2024.05.03 @ 20:41:01 End 2024.05.03 @ 20:58:18 Sessions 1 Manual Loads 0 Difficulty Rogue Special Mode None Game No. 7 Rogue 7 Adventurer 0 Explorer 0 Win Type - Total 0 Types 0/0/0/0/0/0/0/0/0 Lore% 1 Gallery% 7 Achievement% 9 Wizard Run 0 Options --------- Layout 1 ASCII 0 Keyboard 0 Movement Numpad Keybinds 0 Fullscreen 1 Font 48/Smallcaps Map View 50x35 Zoom Use 0% Tactical HUD 0 Map Filters NONE Filters NONE Steam 1 RUN: a72651af-c36e-4a5d-98a0-75ce380e2177